Cogmind - Beta 14 @@@ ROGUE MODE // 2024.08.09 @ 02:15:27 Player: A Moose Result: Destroyed by G-47 Trooper with Particle Gun Performance ------------- Evolutions (0) 0 Regions Visited (2) 400 Robots Destroyed (22) 110 Value Destroyed (495) 495 Prototype IDs (0) 0 Alien Tech Used (0) 0 Bonus (0) 0 TOTAL SCORE: 1005 Bonus ------- None Cogmind --------- Core Integrity 0/250 Matter 293/300 Energy 96/100 System Corruption 0% Temperature Warm (126) Movement Rolling (140) Ox4 Location -10/Mines Parts ------- > --- POWER (1) -------- (None) > --- PROPULSION (2) --- Light Treads Wheel > --- UTILITY (2) ------ High-capacity Storage Unit Seismic Detector > --- WEAPON (2) ------- Particle Gun Light Cannon > --- INVENTORY (20) --- Ion Engine Aluminum Leg Aluminum Leg Wheel Wheel Heat Sink Large Storage Unit Medium Matter Pod (70) Experimental Sensor Array Signal Interpreter Utility Shielding Small Laser Light Assault Rifle Welding Torch Hammer Blade Trap Blade Trap Blade Trap Peak State ------------ > --- POWER ------------ Light Ion Engine > --- PROPULSION ------- Light Treads Wheel > --- UTILITY ---------- High-capacity Storage Unit Seismic Detector > --- WEAPON ----------- Particle Gun Light Cannon > --- INVENTORY -------- Ion Engine Aluminum Leg Aluminum Leg Heat Sink Large Storage Unit Experimental Sensor Array Signal Interpreter Utility Shielding Light Assault Rifle Welding Torch Hammer Blade Trap Blade Trap Blade Trap [Rating: 10] Favorites ----------- Power Light Ion Engine Engine Light Ion Engine Propulsion Light Treads Treads Light Treads Wheel Wheel Utility Seismic Detector Device Seismic Detector Storage High-capacity Storage Unit Protection Utility Shielding Weapon Particle Gun Energy Gun Particle Gun Ballistic Gun Light Assault Rifle Ballistic Cannon Light Cannon Impact Weapon Hammer Build | -11 -10 -10 ------- Run | Yrd Mat Min Slots Evolved . | . . . Power . | . . . Propulsion . | . . . Utility . | . . . Weapon . | . . . Parts Attached 25 | 6 18 1 Power 4 | 1 3 . Engine 4 | 1 3 . Core . | . . . Reactor . | . . . Propulsion 6 | 2 3 1 Treads 3 | . 3 . Leg . | . . . Wheel 3 | 2 . 1 Hover . | . . . Flight . | . . . Utility 5 | 1 4 . Device 1 | . 1 . Storage 3 | 1 2 . Processor . | . . . Hackware . | . . . Protection 1 | . 1 . Artifact . | . . . Weapon 10 | 2 8 . Energy Gun 3 | . 3 . Energy Cannon . | . . . Ballistic Gun 3 | 2 1 . Ballistic Cannon 2 | . 2 . Launcher . | . . . Special Weapon . | . . . Impact Weapon 2 | . 2 . Slashing Weapon . | . . . Piercing Weapon . | . . . Special Melee Weapon . | . . . Unidentified Prototypes . | . . . Parts Lost 9 | . 8 1 Power 3 | . 2 1 Propulsion 3 | . 3 . Utility . | . . . Weapon 3 | . 3 . Highest Loss Streak 7 | . 7 1 To Critical Strikes . | . . . Average Slot Usage (%) 92 | . 86 99 Engine 11 | . 10 14 Treads 15 | . 16 14 Wheel 9 | . 6 13 Device 11 | . 8 14 Storage 14 | . 14 14 Protection 1 | . 2 . Energy Gun 11 | . 10 14 Ballistic Gun 3 | . 6 . Ballistic Cannon 11 | . 8 14 Peak Build Rating 10 | 6 8 10 Average Rating 7 | 3 6 9 On Entrance 4 | . 6 8 Naked Turns . | . . . Heaviest Build 50 | 10 50 50 Greatest Support 40 | 26 40 20 Greatest Overweight (x) 4 | . 2 4 Average Overweight (x) 2 | . . 3 Largest Inventory Capacity 20 | 8 20 20 Average Capacity 17 | 7 15 20 Most Carried 18 | 7 10 18 Average Carried 9 | 3 6 14 Final Capacity 20 | 8 20 20 Final Carried 18 | 4 10 18 Class Distribution -------------------- 100% | Mutant Dominant Class ---------------- Mutant | -10/Materials Mutant | -10/Mines Resources | -11 -10 -10 ----------- Run | Yrd Mat Min Matter Collected 656 | 232 300 124 Remotely . | . . . Salvage Created 734 | . 575 159 Parts 43 | . 31 12 Haulers Intercepted 1 | . 1 . Recyclers Shooed 2 | . 2 . Parts Field Recycled . | . . . Retrieved Matter . | . . . Parts Self-Destructed . | . . . Prevented . | . . . Kills | -11 -10 -10 ------- Run | Yrd Mat Min Combat Hostiles Destroyed 17 | . 14 3 Guns 11 | . 10 1 Cannons 5 | . 3 2 Classes Destroyed 6 | . 4 2 Worker 1 | . . 1 Tunneler 1 | . . 1 Hauler 1 | . 1 . Recycler 2 | . 2 . Swarmer 6 | . 6 . Grunt 11 | . 8 3 Best Kill Streak 3 | . 3 2 Combat Bots Only 3 | . 3 2 Max Kills in Single Turn 1 | . 1 1 Gunslinging . | . . . Exploded . | . . . Melee . | . . . Uniques/NPCs Destroyed . | . . . Combat | -11 -10 -10 -------- Run | Yrd Mat Min Hostile Shots Fired 143 | . 133 10 Missed 41 | . 40 1 Damage Taken 1196 | . 1067 129 Core 252 | . 213 39 Absorbed by Shields . | . . . Redirected to Shielding 29 | . 29 . Core Remaining (%) 100 | 100 . . Volleys Fired 77 | . 63 14 Largest 2 | . 2 2 Hottest 100 | . 100 100 Shots Fired 142 | . 114 28 Gun 110 | . 96 14 Cannon 32 | . 18 14 Launcher . | . . . Special . | . . . Kinetic 92 | . 78 14 Thermal 42 | . 28 14 Explosive . | . . . Electromagnetic 8 | . 8 . Robot Hit Streak 16 | . 16 6 Robot Miss Streak 4 | . 4 3 Penetration Max . | . . . Secondary Targets 2 | . 2 . Max Gunslinging Chain 1 | . 1 . Shots Hit Robots 85 | . 71 14 Core Hits 30 | . 22 8 Critical Kills . | . . . Critical Parts Destroyed . | . . . Critical Strikes 1 | . . 1 Burn 1 | . . 1 Melee Attacks 7 | . 7 . Impact 7 | . 7 . Slashing . | . . . Piercing . | . . . Sneak Attacks . | . . . Combat Hostiles . | . . . Follow-up Attacks . | . . . Damage Inflicted 1304 | . 1061 243 Guns 833 | . 726 107 Cannons 348 | . 212 136 Explosions . | . . . Melee 123 | . 123 . Ramming . | . . . Kinetic 596 | . 460 136 Thermal 497 | . 390 107 Explosive . | . . . Electromagnetic 88 | . 88 . Impact 123 | . 123 . Slashing . | . . . Piercing . | . . . Highest Corruption . | . . . Average Corruption . | . . . Corruption Purged . | . . . Corruption Blocked . | . . . Overload Shots . | . . . Overflow Damage 7 | . 7 . Projectiles . | . . . Explosions . | . . . Melee 7 | . 7 . Knockbacks 3 | . 2 1 Impact 1 | . 1 . Kinetic 2 | . 1 1 Secondary . | . . . Self-Inflicted Damage . | . . . Shots . | . . . Rammed . | . . . Targets Rammed . | . . . Kicked . | . . . Crushed . | . . . Highest Temperature 354 | . 354 210 Average Temperature 100 | . 108 80 Received Heat Transfer 591 | . 495 96 Siege Activations . | . . . Robots Corrupted 1 | . 1 . Combat Hostiles 1 | . 1 . Parts Fried . | . . . Impact Corruptions 1 | . 1 . Robots Melted . | . . . Combat Hostiles . | . . . Parts Melted 4 | . 3 1 Heat Transferred 1221 | . 888 333 Parts Sabotaged . | . . . Parts Stolen . | . . . Parts Stripped . | . . . Power Chain Reactions . | . . . Alert | -11 -10 -10 ------- Run | Yrd Mat Min Peak Influence 219 | . 219 55 Initial 12 | . . 12 Average 51 | . 81 19 Maximum Alert Level 1 | . 1 . Low Security (%) 96 | 100 93 100 Level 1 3 | . 6 . Level 2 . | . . . Level 3 . | . . . Level 4 . | . . . Level 5 . | . . . High Security . | . . . Max Security . | . . . Squads Dispatched 2 | . 2 . Investigation . | . . . Extermination . | . . . Reinforcement 2 | . 2 . Assault . | . . . Garrison . | . . . Intercept . | . . . Searches Triggered . | . . . Construction Impeded . | . . . Haulers Reinforced . | . . . Active Scanning Responses . | . . . Cargo Convoy Interrupts . | . . . Stealth | -11 -10 -10 --------- Run | Yrd Mat Min Distress Signals 1 | . 1 . Communications Jammed . | . . . Distress Signals . | . . . Times Spotted 27 | . 24 3 Peak Tracking Total 4 | . 4 2 Tactical Retreats 2 | . 2 . Traps | -11 -10 -10 ------- Run | Yrd Mat Min Traps Triggered 2 | . 2 . Indirectly . | . . . Trap Hack Attempts . | . . . Triggered . | . . . Disarmed . | . . . Reprogrammed . | . . . Reused . | . . . Traps Extracted . | . . . Installed . | . . . Triggered . | . . . Most Traps Carried 3 | . . 3 Machines | -11 -10 -10 ---------- Run | Yrd Mat Min Machines Disabled . | . . . Max in Single Turn . | . . . Machines Repaired . | . . . Machines Dismantled . | . . . Machines Sabotaged . | . . . Overloaded Fab Kills . | . . . Hacking | -11 -10 -10 --------- Run | Yrd Mat Min Machines Accessed 3 | . 3 . Terminals 3 | . 3 . Fabricators . | . . . Repair Stations . | . . . Recycling Units . | . . . Scanalyzers . | . . . Garrison Access . | . . . Total Hacks 6 | . 6 . Successful 4 | . 4 . Failed 2 | . 2 . Catastrophic . | . . . Database Lockouts . | . . . Manual 3 | . 3 . Terminals 6 | . 6 . Fabricators . | . . . Repair Stations . | . . . Recycling Units . | . . . Scanalyzers . | . . . Garrison Access . | . . . Terminal Hacks 3 | . 3 . Locate Traps 3 | . 3 . Fabricator Hacks . | . . . Repair Station Hacks . | . . . Recycling Unit Hacks . | . . . Scanalyzer . | . . . Garrison Access Hacks . | . . . Unauthorized Hacks 1 | . 1 . Terminals 1 | . 1 . Botnet 1 | . 1 . Fabricators . | . . . Repair Stations . | . . . Recycling Units . | . . . Scanalyzers . | . . . Garrison Access . | . . . Data Cores Recovered . | . . . Used . | . . . Hacking Detections 2 | . 2 . Full Trace Events . | . . . Feedback Events . | . . . Feedback Blocked . | . . . Robot Schematics Acquired . | . . . Robots Built . | . . . Authchips . | . . . Time . | . . . Total Robot Build Rating . | . . . Part Schematics Acquired . | . . . Parts Built . | . . . Authchips . | . . . Time . | . . . Total Part Build Rating . | . . . Parts Repaired . | . . . Time . | . . . Parts Recycled . | . . . Recycled Matter . | . . . Retrieved Matter . | . . . Retrieved Components . | . . . Parts Scanalyzed . | . . . Part Schematics Acquired . | . . . Parts Damaged . | . . . Bothacking | -11 -10 -10 ------------ Run | Yrd Mat Min Used RIF Installer . | . . . Robots Hacked . | . . . Non-combat . | . . . Combat . | . . . Robot Hacks Applied . | . . . Relay Couplers Released . | . . . Fabnet Peak Effective % . | . . . Robots Rewired . | . . . Allies Hacked . | . . . Hacks Repelled . | . . . Allies | -11 -10 -10 -------- Run | Yrd Mat Min Total Allies . | . . . Largest Group . | . . . Highest-Rated Group . | . . . Highest-Rated Ally . | . . . Total Orders . | . . . Ally Attacks . | . . . Total Damage . | . . . Kills . | . . . Allies Corrupted . | . . . Allies Melted . | . . . Intel | -11 -10 -10 ------- Run | Yrd Mat Min Robot Analysis Total . | . . . Derelict Logs Recovered 1 | . . 1 Drone Launches . | . . . Drone Recoveries . | . . . Exploration | -11 -10 -10 ------------- Run | Yrd Mat Min Turns Passed 1913 | 54 1000 859 Spaces Moved 986 | 45 438 503 Core 5 | 5 . . Treads 283 | . 280 3 Legs . | . . . Wheels 698 | 40 158 500 Hover . | . . . Flight . | . . . Fastest Speed 50 | 50 90 140 Average Speed 153 | 82 174 141 Slowest Speed 320 | 90 320 320 Overloaded Moves . | . . . Propulsion Burnouts . | . . . Robots Hopped . | . . . Cave-ins Triggered . | . . . Exploration Rate (%) 53 | 3 61 95 Regions Visited 2 Branch Regions 1 Pre-discovered Areas 2 | . . 2 Known Exits Taken . | . . . Unknown Exits Taken 2 | 1 1 . Scrap Searched 2 | . . 2 Spaces Dug 2 | . 2 . Terrain Destroyed 2 | . 2 . Melee 2 | . 2 . Projectile . | . . . AOE . | . . . Terrain Rammed . | . . . Walls Destroyed . | . . . Machines Disabled . | . . . Actions | -11 -10 -10 --------- Run | Yrd Mat Min Total 1247 | 61 561 625 Wait 112 | 1 13 98 Move 984 | 44 437 503 Hop . | . . . Pick Up 39 | 10 20 9 Fast Attach . | . . . Attach 18 | 6 11 1 Detach . | . . . Swap 7 | . 7 . Drop 3 | . 3 . Fire 77 | . 63 14 Melee 7 | . 7 . Ram . | . . . Kick . | . . . Crush . | . . . Escape Stasis . | . . . Rewire . | . . . Trap . | . . . Miscellaneous . | . . . Route ------- -11/Scrapyard -10/Materials (discovered 2 exits: [*Mat] / [*Min]) -10/Mines (discovered 2 exits: [*Mat x2]) History --------- Turn | Location | Event 9 | -11/Scrapyard | Discovered new exit (range 16) 55 | -11/Scrapyard | Entered Materials 308 | -10/Materials | Core integrity fell below 50% 309 | -10/Materials | Build established: Mutant 364 | -10/Materials | Lost 7 parts (2p2n3w) 590 | -10/Materials | Discovered new exit (range 11) 801 | -10/Materials | Core integrity fell below 20% 1011 | -10/Materials | Discovered new exit (range 7) 1055 | -10/Materials | Entered Mines 1115 | -10/Mines | Found a hidden stash of uninstalled traps 1448 | -10/Mines | Found a damaged Exp. Sensor Array with a note attached 1451 | -10/Mines | Found Prototype Device 1770 | -10/Mines | Discovered new exit (range 12) 1800 | -10/Mines | Learned location of Storage (-7) 1884 | -10/Mines | Discovered new exit (range 11) 1914 | -10/Mines | Destroyed by G-47 Trooper with Particle Gun Last Messages --------------- our previous successful raids." World map updated: -7/Storage. X5-8C6(g): "We scattered so the Unaware couldn't effectively use their advantage in numbers, and I suggest you do the same." X5-8C6(g) slips back into the shadows. Acquired derelict log, extracted data. World map updated: -9/Materials. EXIT=FOUND Searching scrap... Found Huge Storage Unit. Found Med. Matter Pod. Found Med. Storage Unit. Found 70 Matter. Acquired Med. Matter Pod. Acquired 70 matter. G-47 Trooper knocked back. G-34 Mercenary destroyed. Lgt. Ion Engine destroyed. K-01 Serf collects debris. Map ----- +----------------------------------------------------+ | ##???????????# #??????????? | | #####???????## ##??????????? | | ##???????# ##???????????? | | #???????## ##????????????? | | #????????## ##?????????????? | | ### #?????????## ##??????????????? | | # #?## ##??????????###???????????????? | | # #???#####?????????????????????????????? | | # #?????????????????????????????????????? | | # #?????####????????????????????????????? | | # #????## ##???????????????????????????? | | # ###### ###?????????????????????????? | | ##????????????????????????? | | ##???????????????????????? | | ### ## ##??????????????????????? | | ??# ## ## ##?????????????????????? | | ?## ### #### #?????????????????????? | | ## ######### ##????????????????????? | | # #???# #???????????##???????? | | # #???# < #??????????""????????? | | ##???# #### ##????????? "?????????? | | ##????# #??## #????##### ??????????? | | ##?????# #???# #????#[= ????????????? | | ##????### #???# #?####g%#?????????????? | | ##?????# ##??# ### %!#?????????????? | | ???????# ##?# ## k !@#?????????????? | | ???????# ### # !##?????????????? | | ??????## ##????????????? | | ????### #????????????? | | ???## ####### < #????????? | | ??## ##?????## ######????????? | | ?## #### ##???????#####?????????????? | | ?# ##??####??????????????????????????? | | ?## ##?????????????????????????????????? | | ??####??????????????????????????????????? | | ????????????????????????????????????????? | | ????????????????????????????????????????? | | | | | | | | | | | | | | | | | | | | | | | | | | | +----------------------------------------------------+ Best States ------------- Heat Dissipation 25 Energy Generation 10 Energy Capacity 250 Matter Stores 300 Matter Capacity 300 Sight Range 16 Terrain Scan Density 10 Utility Shielding 33 Evasion (%) 44 Recoil Reduction 2 Item Schematics ----------------- None Robot Schematics ------------------ None Fabricated ------------ Nothing Alien Tech Used ----------------- None Achievements -------------- None Challenges ------------ None Game ------ Seed WarlordSuperdenseNanosword Manual? 0 Play Time 00:13:26 Cumulative 131.6 hours Start 2024.08.09 @ 02:04:32 End 2024.08.09 @ 02:15:27 Sessions 1 Manual Loads 0 Difficulty Rogue Special Mode None Game No. 125 Rogue 116 Adventurer 9 Explorer 0 Win Type - Total 0 Types 0/0/0/0/0/0/0/0/0 Lore% 36 Gallery% 61 Achievement% 48 Wizard Run 0 Options --------- Layout 1 ASCII 0 Keyboard 0 Movement Numpad Keybinds 0 Fullscreen 1 Font 24/Smallcaps Map View 50x35 Zoom Use 0% Tactical HUD 0 Map Filters NONE Filters NONE Steam 1 RUN: 223d72d5-beb5-48f1-a3f4-c5710ddf3555